bitfinex/quotes_ETHUSD_20250529
["timestamp","ask_amount","ask_price","bid_price","bid_amount"]
[1748541886338,7.68987976,2661.8,2661.2,13.697655]
[1748541886518,7.68985964,2661.8,2661.3,16.492755]
[1748541886713,3.75709289,2661.7,2661.3,7.774628]
[1748541886926,3.75674047,2661.9,2661.4,3.75742072]
[1748541887127,3.933,2661.7,2661.5,4.731103]
[1748541887342,3.933,2661.7,2661.3,3.7575121]
[1748541887537,3.933,2661.7,2661.4,13.785738]
[1748541887709,3.933,2661.7,2661.4,13.570065]
[1748541888418,3.75688168,2661.8,2661.4,17.32743716]
[1748541888419,3.933,2661.8,2661.4,17.32743716]
[1748541888618,3.933,2661.8,2661.4,26.687085]
[1748541888619,7.68986349,2661.8,2661.4,26.687085]
[1748541888841,7.68986349,2661.8,2661.4,16.418958]
[1748541889229,7.68986349,2661.8,2661.5,10.0]
[1748541889528,7.68986349,2661.8,2661.3,3.75748994]
[1748541890249,3.933,2661.8,2661.5,10.0]
[1748541890403,1.0874,2662.1,2661.6,16.684725]
[1748541890603,4.88616607,2662.4,2661.8,3.7568513]
[1748541890820,4.88616607,2662.4,2661.9,3.75664023]
[1748541890821,4.88617225,2662.4,2661.9,3.75664023]
[1748541891005,3.93,2662.3,2662.0,2.483265]
[1748541891627,7.6862696,2662.3,2661.7,10.0]
[1748541891825,7.68619556,2662.3,2661.8,10.0]
[1748541892057,3.93,2662.3,2661.7,18.78011092]
[1748541892357,3.75632738,2662.2,2661.8,5.845781]
[1748541892554,3.75632738,2662.2,2661.9,10.0]
[1748541893521,3.75645392,2662.1,2661.9,10.0]
[1748541893739,7.68616002,2662.3,2661.8,10.0]
[1748541893933,7.68616002,2662.3,2661.8,9.92453074]
[1748541893934,7.68622766,2662.3,2661.8,9.92453074]
[1748541894152,7.68622766,2662.3,2661.9,10.0]
[1748541894360,7.68622766,2662.3,2661.8,3.75679474]
[1748541894523,4.88613814,2662.4,2662.0,10.0]
[1748541894863,1.121,2662.7,2662.2,4.483949]
[1748541895050,8.80359298,2662.7,2662.4,2.3527]
[1748541895239,3.75573209,2662.6,2662.2,24.713026]
[1748541895444,3.75573209,2662.6,2662.2,4.5125181]
[1748541895637,3.75573209,2662.6,2662.3,10.0]
[1748541895848,5.048,2662.7,2662.2,26.102838]
[1748541896066,8.80362621,2662.7,2662.4,12.314784]
[1748541896261,8.80362621,2662.7,2662.3,10.586184]
[1748541896434,8.80362621,2662.7,2662.3,10.231184]
[1748541896633,3.75573728,2662.6,2662.3,9.999919]
[1748541896869,4.87666088,2662.7,2662.2,18.14923753]
[1748541897068,3.926,2662.7,2662.5,16.169487]
[1748541897378,3.926,2662.7,2662.6,10.0]
[1748541897681,3.926,2662.7,2662.4,27.010301]
[1748541897881,3.926,2662.7,2662.5,16.718301]
[1748541898033,3.926,2662.7,2662.4,17.010301]
[1748541898233,3.925,2662.8,2662.2,23.42428348]
[1748541898445,3.7556516,2662.7,2662.2,9.668106]
[1748541898646,3.7556516,2662.7,2662.3,16.131148]
[1748541898853,3.7556516,2662.7,2662.3,12.341678]
[1748541899055,7.68050199,2662.8,2662.4,12.322978]
[1748541899258,7.67844814,2662.8,2662.4,16.07898465]
[1748541899570,5.93107422,2662.9,2662.6,10.0]
[1748541899725,3.923,2662.8,2662.5,23.594309]
[1748541899926,3.923,2662.8,2662.5,13.594309]
[1748541900170,7.67844787,2662.8,2662.5,11.618599]
[1748541900369,7.67844787,2662.8,2662.4,11.592299]
[1748541900370,3.75560768,2662.7,2662.4,11.592299]
[1748541900556,3.923,2662.8,2662.4,15.316251]
[1748541900733,7.67845652,2662.8,2662.3,20.08711965]
[1748541900933,3.75566642,2662.7,2662.3,13.767193]
[1748541901170,7.67847798,2662.8,2662.4,17.237863]
[1748541901380,3.75562594,2662.7,2662.4,10.6756]
[1748541901541,3.75562594,2662.7,2662.3,10.6756]
[1748541902574,3.75562594,2662.7,2662.4,12.251712]
[1748541902802,3.919,2662.8,2662.3,3.75610845]
[1748541902948,7.674521,2662.8,2662.4,13.651712]
[1748541903281,4.16411684,2663.3,2662.6,27.037665]
[1748541903587,4.16411684,2663.3,2663.2,3.75488134]
[1748541903784,4.16411684,2663.3,2663.2,7.45300434]
[1748541903937,4.16411684,2663.3,2663.2,8.60430434]
[1748541904153,1.1016,2664.5,2663.8,17.59742]
[1748541904350,1.1016,2664.5,2664.1,1.88277223]
[1748541904565,0.35825172,2664.8,2664.2,8.593216]
[1748541904762,9.22498606,2664.9,2664.2,8.593216]
[1748541904975,9.22498606,2664.9,2664.1,1.88277223]
[1748541904976,9.22493898,2664.9,2664.5,15.748451]
[1748541905185,3.75265776,2664.8,2664.4,13.404513]
[1748541905794,8.77614382,2664.9,2664.4,13.404513]
[1748541905997,6.27693838,2664.9,2664.1,1.88277223]
[1748541906191,6.27693838,2664.9,2664.0,23.435743]
[1748541906347,6.27693838,2664.9,2663.7,3.02897223]
[1748541906348,5.0236,2664.9,2664.1,14.548593]
[1748541906551,1.0818,2664.3,2663.5,16.692912]
[1748541906755,1.0818,2664.3,2663.5,10.0]
[1748541906756,3.923,2664.2,2663.5,10.0]
[1748541906954,3.923,2664.2,2663.4,2.871078]
[1748541907181,3.923,2664.2,2663.6,10.0]
[1748541907450,3.75375375,2664.0,2663.4,5.720841]
[1748541907807,8.55252269,2664.1,2663.3,6.157141]
[1748541908113,3.75440025,2663.6,2663.2,14.55243]
[1748541908250,3.75424014,2663.7,2663.2,7.203478]
[1748541908450,3.75424014,2663.7,2663.4,10.0]
[1748541908702,3.75405626,2663.8,2663.4,10.018638]
[1748541908988,3.926,2664.1,2663.4,14.842874]
[1748541909149,3.75392038,2663.9,2663.4,16.239614]
[1748541909352,0.3926,2664.0,2663.5,10.0]
[1748541909564,0.3926,2664.0,2663.6,15.050656]
[1748541909565,3.7540428,2663.8,2663.6,15.050656]
[1748541909777,3.75459938,2663.4,2663.1,10.0]
[1748541909981,1.1248,2663.7,2663.2,10.0]
[1748541910326,1.1248,2663.7,2663.3,20.060642]
[1748541910597,1.1248,2663.7,2663.4,3.0188]
[1748541910753,5.38403151,2663.7,2663.1,24.100997]
[1748541910954,7.67913212,2663.8,2663.3,35.129173]
[1748541911154,7.67913212,2663.8,2663.3,25.129173]
[1748541911354,3.7541839,2663.7,2663.3,25.129173]
[1748541911555,3.925,2663.8,2663.2,15.895682]
[1748541911556,3.75431848,2663.6,2663.2,15.895682]
[1748541911869,3.924,2663.9,2663.1,15.355826]
[1748541911870,3.75447318,2663.5,2663.1,15.355826]
[1748541912071,3.75432151,2663.6,2663.2,10.0]
[1748541912284,3.7546137,2663.4,2663.3,10.0]
[1748541912797,3.75456592,2663.5,2663.1,10.0]
[1748541912958,3.75456592,2663.5,2663.2,13.191643]
[1748541913155,3.75438806,2663.6,2663.2,13.191643]
[1748541913357,3.75448786,2663.5,2663.2,13.191643]
[1748541913557,3.75448786,2663.5,2663.2,3.396844]
[1748541913757,3.75457658,2663.5,2663.2,3.396844]
[1748541913959,3.75474035,2663.3,2663.1,3.196194]
[1748541914169,3.923,2663.6,2663.0,5.713573]
[1748541914354,3.75474035,2663.3,2663.2,10.0]
[1748541914682,3.75459938,2663.4,2662.9,10.0]
[1748541914683,3.75488954,2663.2,2662.9,10.0]
[1748541914891,7.67762921,2663.4,2662.9,13.538032]
[1748541915068,7.67762921,2663.4,2662.9,12.366179]
[1748541915254,3.75497078,2663.2,2662.9,3.22499]
[1748541915705,3.75480704,2663.3,2662.9,6.624506]
[1748541915879,3.75496613,2663.2,2662.9,6.624506]
[1748541916058,3.75480356,2663.3,2662.9,6.624506]
[1748541916262,7.67767031,2663.4,2662.9,6.624506]
[1748541916458,1.0881,2663.5,2663.1,10.0]
[1748541916697,1.0881,2663.5,2662.8,3.75540374]
[1748541916698,8.76456731,2663.5,2662.9,13.75525969]
[1748541916897,8.76456731,2663.5,2663.0,19.635932]
[1748541917107,8.76456731,2663.5,2663.0,19.298932]
[1748541917410,8.76464916,2663.5,2662.9,10.0]
[1748541917561,8.76464916,2663.5,2663.0,10.0]
[1748541917562,1.0881,2663.5,2663.0,10.0]
[1748541917896,4.84265056,2663.5,2663.0,16.520417]
[1748541918097,3.75475176,2663.3,2662.9,13.727398]
[1748541918459,3.75410267,2663.8,2663.0,3.75516334]
[1748541918671,3.92,2663.7,2663.1,33.030319]
[1748541918878,3.92,2663.7,2663.3,26.470836]
[1748541919078,3.92,2663.7,2663.3,16.470836]
[1748541919300,3.92,2663.7,2663.0,3.75516334]
[1748541919301,3.75440363,2663.6,2663.1,22.077505]
[1748541919497,3.75422007,2663.7,2663.1,25.8324797]
[1748541919660,3.75422007,2663.7,2663.2,14.183195]
[1748541920498,3.75422007,2663.7,2663.2,29.043574]
[1748541920699,1.1175,2663.9,2663.1,28.711677]
[1748541920999,1.1175,2663.9,2663.0,3.92]
[1748541921000,3.75380323,2664.0,2663.5,18.741599]
[1748541921185,4.89723009,2664.4,2663.8,9.01773966]
[1748541921388,3.75333633,2664.3,2663.8,26.233609]
[1748541921560,7.67333633,2664.3,2663.8,15.027612]
[1748541921766,1.144,2664.4,2663.9,20.463879]
[1748541922007,1.144,2664.4,2663.3,3.75472555]
[1748541922008,1.144,2664.8,2664.2,29.946632]
[1748541922209,3.75255779,2664.9,2664.4,24.22185]
[1748541922371,1.149,2665.1,2664.6,20.43729]
[1748541922567,4.90131247,2665.1,2664.6,10.43729]
[1748541922817,1.149,2665.1,2664.6,10.43729]
[1748541923019,3.75293264,2664.6,2664.3,17.373531]
[1748541923311,3.75283564,2664.7,2664.5,10.0]
[1748541923511,1.149,2665.1,2664.6,3.37865314]
[1748541923710,0.005,2665.1,2664.8,11.92724714]
[1748541923913,0.005,2665.1,2664.8,8.548594]
[1748541925095,0.005,2665.1,2664.9,3.921]
[1748541925427,3.75144632,2665.7,2665.1,3.7522001]
[1748541925584,0.88214463,2665.7,2665.1,10.0]
[1748541925785,3.7521366,2665.2,2664.8,12.00425]
[1748541925983,3.7521366,2665.2,2664.8,11.11565]
[1748541926310,3.7518231,2665.4,2664.9,3.75246094]
[1748541926517,3.75166988,2665.5,2665.0,31.387229]
[1748541926822,3.927,2665.7,2664.8,17.560757]
[1748541926976,0.5071,2665.6,2664.8,3.59475]
[1748541927175,0.5071,2665.6,2664.9,10.0]
[1748541927400,0.5071,2665.6,2665.1,10.0]
[1748541927616,4.25868109,2665.6,2665.2,10.0]
[1748541927812,4.25868109,2665.6,2665.4,10.0]
[1748541927813,0.5071,2665.6,2665.4,10.0]
[1748541928121,0.44710991,2666.0,2665.6,13.978219]
[1748541928411,3.75206341,2665.3,2664.9,25.643399]
[1748541928616,3.75206341,2665.3,2664.3,1.1854]
[1748541928617,3.75220442,2665.1,2664.3,1.1854]
[1748541928787,1.1959,2665.2,2664.4,5.193096]
[1748541928988,3.75229416,2665.1,2664.5,31.40864]
[1748541929213,4.64061358,2665.1,2664.5,17.146172]
[1748541929412,0.88831942,2665.1,2664.4,3.009961]
[1748541929640,3.75297896,2664.6,2664.4,2.556104]
[1748541929939,3.75297437,2664.6,2664.4,5.80929]
[1748541930145,3.75297437,2664.6,2664.4,2.715934]
[1748541930441,3.75282977,2664.7,2664.4,20.161679]
[1748541930638,0.88831942,2665.1,2664.4,17.069433]
[1748541930848,1.1959,2665.2,2664.2,3.936]
[1748541930849,4.94803319,2665.2,2664.6,11.0884]
[1748541931003,4.83980787,2665.5,2665.0,3.7523159]
[1748541931208,5.4293196,2665.5,2665.1,16.955367]
[1748541931446,3.75179331,2665.4,2665.0,15.848333]
[1748541931651,1.67758079,2665.5,2664.9,17.503219]
[1748541931652,3.75194091,2665.3,2664.9,17.503219]
[1748541931829,3.75194091,2665.3,2664.9,17.177219]
[1748541932205,3.75178209,2665.4,2664.8,10.798856]
[1748541932403,3.75178209,2665.4,2664.6,1.0884]
[1748541932404,0.54293629,2665.3,2664.6,1.0884]
[1748541932604,0.54293629,2665.3,2664.7,2.012682]
[1748541932812,3.75227192,2665.1,2664.7,2.012682]
[1748541933050,0.54293629,2665.3,2664.7,2.012682]
[1748541933355,3.75212089,2665.2,2664.7,2.012682]
[1748541933519,7.68888175,2665.4,2664.8,3.7525428]
[1748541933520,3.75186392,2665.4,2664.8,3.7525428]
[1748541933720,4.83974684,2665.5,2664.9,19.32523875]
[1748541933721,0.48399639,2665.3,2664.9,19.32523875]
[1748541934033,0.48399639,2665.3,2664.9,14.838866]
[1748541934034,4.235931,2665.3,2664.9,14.838866]
[1748541934220,4.235931,2665.3,2664.9,11.600238]
[1748541934420,3.75208204,2665.2,2664.9,11.600238]
[1748541934731,0.48399639,2665.3,2665.0,10.0]
[1748541935041,0.48399639,2665.3,2664.8,14.973326]
[1748541935042,3.75218979,2665.2,2664.8,14.973326]
[1748541935343,1.3720959,2666.2,2665.0,24.58834723]
[1748541935344,1.77296667,2666.2,2665.0,24.58834723]
[1748541935546,3.75161563,2665.6,2665.1,2.174213]
[1748541935707,3.75172174,2665.5,2665.0,19.556275]
[1748541935907,3.75181763,2665.4,2665.0,19.556275]
[1748541936107,0.7503372,2665.4,2665.0,19.556275]
[1748541936341,3.75176748,2665.5,2665.0,15.96255081]
[1748541936646,1.1063,2665.7,2665.1,8.366698]
[1748541936855,4.85769851,2665.7,2665.0,20.358424]
[1748541937057,3.75166199,2665.5,2665.1,10.0]
[1748541937356,3.75178209,2665.4,2665.3,10.0]
[1748541937554,4.1269603,2665.4,2665.0,13.045794]
[1748541937758,0.37517821,2665.4,2665.0,13.045794]
[1748541937916,3.75202106,2665.3,2665.1,10.0]
[1748541938119,0.37517821,2665.4,2664.7,12.105241]
[1748541938357,3.75229246,2665.1,2664.7,11.953694]
[1748541938653,4.8583747,2665.2,2664.8,12.0798]
[1748541938858,5.75691363,2665.2,2664.8,11.4038]
[1748541939054,2.00483893,2665.2,2664.8,15.15636307]
[1748541939259,2.00483893,2665.2,2664.9,13.07451]
[1748541939260,0.89853893,2665.2,2664.9,13.07451]
[1748541939462,3.75198802,2665.3,2664.9,13.07451]
[1748541939463,4.12702634,2665.4,2664.9,13.07451]
[1748541939660,3.75211239,2665.2,2664.9,10.0287]
[1748541939844,4.12701895,2665.4,2664.9,10.0287]
[1748541939845,4.12706445,2665.4,2664.9,10.316]
[1748541940253,4.12706445,2665.4,2664.9,14.0684758]
[1748541940460,4.12706445,2665.4,2665.0,14.739744]
[1748541940760,0.37517821,2665.4,2665.0,18.49203892]
[1748541941058,0.37517821,2665.4,2665.1,14.904919]
[1748541941222,4.12702941,2665.4,2665.0,12.1306]
[1748541941422,4.12706543,2665.4,2665.0,11.219078]
[1748541941838,3.75192722,2665.3,2664.9,11.034773]
[1748541942036,4.66235744,2665.3,2664.9,11.034773]
[1748541942234,0.91043022,2665.3,2664.9,10.761106]
[1748541942458,3.75207262,2665.2,2664.8,21.841392]
[1748541942664,3.75212071,2665.2,2664.7,11.6157]
[1748541942859,3.75216583,2665.2,2664.8,11.3247]
[1748541943068,4.64974326,2665.2,2664.8,11.3247]
[1748541943227,3.75222924,2665.1,2664.7,12.5804]
[1748541943747,4.64974326,2665.2,2664.8,14.41761]
[1748541943935,4.64974326,2665.2,2664.8,13.0117]
[1748541944341,4.64974326,2665.2,2664.8,12.6857]
[1748541945374,0.89757743,2665.2,2664.9,3.75246363]
[1748541945559,3.934,2665.3,2665.0,10.0]
[1748541945869,3.75155827,2665.6,2665.0,30.403146]
[1748541948259,3.75228303,2665.1,2664.8,16.493281]
[1748541948468,5.90143577,2665.2,2664.8,11.490264]
[1748541948668,3.7522648,2665.1,2664.7,11.700898]
[1748541948870,5.11081424,2665.1,2664.7,11.081175]
[1748541949377,5.11080314,2665.1,2664.6,11.406354]
[1748541949682,1.35854177,2665.1,2664.3,4.87112751]
[1748541949847,1.2035,2665.2,2664.4,13.871]
[1748541949848,3.75256736,2664.9,2664.4,13.871]
[1748541950046,1.2035,2665.2,2664.6,27.289179]
[1748541950047,3.75241865,2665.0,2664.6,27.289179]
[1748541950247,3.75241865,2665.0,2664.6,17.289179]
[1748541950461,3.7527195,2664.8,2664.5,10.9135]
[1748541950654,3.7527906,2664.7,2664.4,10.351865]
[1748541950852,4.50318772,2664.8,2664.4,10.521445]
[1748541951055,3.7528226,2664.7,2664.4,10.521445]
[1748541951373,4.8835687,2664.6,2664.0,10.862486]
[1748541951541,4.8835687,2664.6,2663.9,7.68780875]
[1748541951542,4.8835687,2664.6,2664.2,33.080827]
[1748541951743,4.8835687,2664.6,2664.2,20.589015]
[1748541951953,1.1306,2664.6,2664.2,20.589015]
[1748541952242,5.63374381,2664.8,2664.3,17.262425]
[1748541952564,5.63374381,2664.8,2664.5,10.0]
[1748541952565,0.56337438,2664.7,2664.5,10.0]
[1748541952763,0.56337438,2664.7,2664.4,2.8476]
[1748541953190,1.1621,2665.3,2664.6,30.47297]
[1748541953479,4.91413958,2665.3,2664.7,3.75268558]
[1748541953642,4.91413958,2665.3,2664.8,12.862029]
[1748541953842,5.78073175,2665.3,2664.8,11.831026]
[1748541954038,3.75207811,2665.2,2664.8,11.831026]
[1748541954381,5.7806905,2665.3,2664.9,16.079412]
[1748541955155,5.7806905,2665.3,2664.8,3.75260452]
[1748541955156,3.75208133,2665.2,2664.8,13.722948]
[1748541955342,2.02869217,2665.3,2664.8,10.0287]
[1748541955548,3.95499793,2665.2,2664.7,29.836708]
[1748541955748,4.91404422,2665.3,2664.7,19.491318]
[1748541956080,4.88263348,2665.5,2664.9,21.58604593]
[1748541956242,4.88263348,2665.5,2665.1,12.271128]
[1748541956440,1.1309,2665.5,2665.1,12.271128]
[1748541956681,7.68646875,2665.7,2665.1,3.75212647]
[1748541956980,8.67367845,2665.7,2665.1,35.49294109]
[1748541957279,4.73867845,2665.7,2665.2,20.036589]
[1748541957452,3.7515032,2665.6,2665.2,19.685589]
[1748541957655,3.75148232,2665.7,2665.2,8.664486]
[1748541958006,1.1309,2665.8,2665.3,3.75185089]
[1748541958287,1.1309,2665.8,2665.3,2.3417]
[1748541958288,3.75137889,2665.7,2665.3,2.3417]
[1748541958458,3.75137889,2665.7,2665.4,2.9297]
[1748541958780,1.1309,2665.8,2665.4,2.6137]
[1748541958942,4.88216054,2665.8,2665.4,20.493738]
[1748541959143,3.75113517,2665.9,2665.5,14.570553]
[1748541959354,3.75124242,2665.8,2665.4,11.657185]
[1748541959796,3.75156558,2665.6,2665.4,9.677548]
[1748541959958,3.75143922,2665.7,2665.4,9.677548]
[1748541960566,3.75213286,2665.2,2664.9,1.1436]
[1748541960763,1.1384,2665.3,2664.6,40.2181692]
[1748541961070,3.75175775,2665.5,2665.1,13.048593]
[1748541961655,8.82296344,2665.6,2665.2,10.0]
[1748541961898,3.75178209,2665.4,2665.2,11.729]
[1748541962098,5.0714,2665.6,2664.8,9.56831038]
[1748541962099,3.75171886,2665.5,2665.0,17.34962978]
[1748541962401,5.0714,2665.6,2665.1,16.71940239]
[1748541962697,8.82291123,2665.6,2665.2,8.823334]
[1748541962904,8.82291123,2665.6,2665.2,7.423334]
[1748541963061,3.75164169,2665.5,2665.3,10.0]
[1748541963262,8.82298599,2665.6,2665.2,18.823334]
[1748541963462,8.82298599,2665.6,2665.1,11.176583]
[1748541963463,3.75171663,2665.5,2665.1,11.176583]
[1748541963690,1.1886,2665.3,2664.4,10.584436]
[1748541963904,1.1886,2665.3,2664.8,22.81152]
[1748541963905,3.75209039,2665.2,2664.8,22.81152]
[1748541964068,3.75209039,2665.2,2664.8,20.527944]
[1748541964265,3.75209039,2665.2,2664.7,3.75270219]
[1748541964266,1.1886,2665.3,2664.4,1.88277223]
[1748541964466,3.75241866,2665.0,2664.5,7.68403928]
[1748541964807,3.75241866,2665.0,2664.6,2.628192]
[1748541965105,3.7524125,2665.0,2664.7,10.0]
[1748541965423,1.2017,2664.9,2664.3,6.408204]
[1748541965567,1.2017,2664.9,2664.5,10.0]
[1748541965568,4.95426627,2664.9,2664.5,10.0]
[1748541965769,1.2017,2665.2,2664.6,10.0]
[1748541966113,3.75229626,2665.1,2664.6,15.677156]
[1748541966403,3.75238034,2665.0,2664.6,8.666105]
[1748541966577,3.75223166,2665.1,2664.5,25.002506]
[1748541966796,3.75250662,2664.9,2664.5,5.387637]
[1748541966997,3.75250662,2664.9,2664.6,10.0]
[1748541967201,3.75250662,2664.9,2664.5,10.0]
[1748541967399,3.75250662,2664.9,2664.5,13.357792]
[1748541967634,3.75250662,2664.9,2664.2,10.66938878]
[1748541967635,3.7528328,2664.7,2664.2,2.98495132]
[1748541967789,3.75270093,2664.8,2664.3,9.364307]
[1748541967992,3.75278594,2664.7,2664.3,9.364307]
[1748541968388,1.2085,2665.4,2664.3,50.0]
[1748541968591,1.2085,2665.4,2664.2,1.1354]
[1748541968592,1.2085,2665.4,2664.7,8.368312]
[1748541968830,3.75228543,2665.1,2664.7,10.0]
[1748541969033,3.75228543,2665.1,2664.4,3.3486327]
[1748541969034,4.12744842,2665.1,2664.4,3.3486327]
[1748541969331,3.75301221,2664.6,2664.4,25.785075]
[1748541969518,8.90489033,2665.0,2664.3,15.820425]
[1748541969828,8.90489033,2665.0,2664.5,10.0]
[1748541969829,3.75266142,2664.8,2664.5,10.0]
[1748541970028,3.75266142,2664.8,2664.4,25.069985]
[1748541970234,3.75273504,2664.8,2664.3,13.7532759]
[1748541970547,5.1525,2665.0,2664.5,10.0]
[1748541970711,6.08049476,2665.0,2664.3,14.793075]
[1748541970917,3.75270442,2664.8,2664.3,4.793075]
[1748541971237,3.75279422,2664.7,2664.3,24.706275]
[1748541971405,3.75267151,2664.8,2664.3,9.94137541]
[1748541971600,3.75284599,2664.7,2664.3,26.096275]
[1748541971796,3.75297605,2664.6,2664.4,10.0]
[1748541972133,3.75258924,2664.9,2664.3,10.0]
[1748541972623,3.75271815,2664.8,2664.4,10.0]
[1748541972831,3.75276334,2664.8,2664.5,10.0]
[1748541972984,3.75276334,2664.8,2664.4,12.803872]
[1748541973189,3.75278954,2664.7,2664.3,15.688772]
[1748541973631,3.75278954,2664.7,2664.3,10.669072]
[1748541974203,1.2085,2665.0,2664.3,10.669072]
[1748541974415,4.97449504,2665.3,2664.8,3.75260954]
[1748541974619,6.24091308,2665.3,2664.8,3.75260954]
[1748541974800,4.97407059,2665.6,2665.1,3.75220386]
[1748541975004,5.1625,2665.6,2665.2,3.75206251]
[1748541975204,1.2225,2665.6,2665.1,16.484871]
[1748541975405,3.94,2665.7,2665.3,13.75191121]
[1748541975941,5.52160321,2665.8,2665.3,3.7518159]
[1748541976142,9.27284895,2665.8,2665.3,3.7518159]
[1748541976351,1.58160321,2665.8,2665.1,10.0]
[1748541976506,0.35910321,2665.8,2665.3,10.0]
[1748541976711,0.35910321,2665.8,2665.5,3.75159431]
[1748541977010,0.35910321,2665.8,2665.5,10.0]
[1748541977648,0.35910321,2665.8,2665.2,3.75203047]
[1748541977649,0.35910321,2665.8,2665.2,20.056814]
[1748541977834,3.75143299,2665.7,2665.3,3.413449]
[1748541978010,3.75141374,2665.7,2665.1,13.939]
[1748541978349,3.75162718,2665.6,2665.2,12.79672]
[1748541978649,4.29810321,2665.8,2665.3,10.0]
[1748541978820,4.29810321,2665.8,2665.5,10.0]
[1748541978821,3.75138052,2665.7,2665.5,10.0]
[1748541979003,3.75138052,2665.7,2665.4,10.0]
[1748541979206,3.75138052,2665.7,2665.3,10.0]
[1748541979407,3.75138052,2665.7,2665.4,10.0]
[1748541979608,3.75138052,2665.7,2665.3,10.0]
[1748541979827,3.75138052,2665.7,2665.4,10.0]
[1748541980113,3.75143595,2665.7,2665.2,27.45799554]
[1748541980322,3.75143595,2665.7,2665.3,13.034422]
[1748541980504,3.75143595,2665.7,2665.3,12.60612]
[1748541980705,3.75137793,2665.7,2665.2,24.52905238]
[1748541980910,0.35910321,2665.8,2665.4,33.92912164]
[1748541981135,0.35910321,2665.8,2665.4,3.75169164]
[1748541981519,3.75143774,2665.7,2665.3,12.23172]
[1748541981725,3.75143774,2665.7,2665.3,4.97599]
[1748541981950,3.75143774,2665.7,2665.4,10.0]
[1748541982124,3.7515006,2665.6,2665.2,10.0]
[1748541982451,3.75135986,2665.7,2665.1,10.0]
[1748541982452,3.75165299,2665.5,2665.1,10.0]
[1748541982638,3.75165299,2665.5,2665.3,10.0]
[1748541982950,3.75204738,2665.3,2664.8,1.86604552]
[1748541983150,3.75201802,2665.3,2664.8,14.31237]
[1748541983511,3.75191473,2665.4,2664.9,3.75248575]
[1748541983716,3.75178855,2665.4,2664.9,20.28851448]
[1748541984012,7.68454059,2665.6,2665.1,14.910993]
[1748541984013,3.75172516,2665.5,2665.1,14.910993]
[1748541984225,3.75172516,2665.5,2664.8,3.75259825]
[1748541984226,3.75172516,2665.5,2664.9,12.010708]
[1748541984427,3.75172516,2665.5,2664.9,3.7524765]
[1748541984629,3.75178209,2665.4,2664.9,3.75244275]
[1748541984834,3.75189484,2665.4,2665.0,26.189228]
[1748541985025,3.75185906,2665.4,2664.9,26.935316]
[1748541985221,3.75185906,2665.4,2664.7,8.87814856]
[1748541985222,3.75211019,2665.2,2664.7,4.94605286]
[1748541985447,4.96441019,2665.2,2664.9,10.0]
[1748541985714,4.96441019,2665.2,2664.8,10.0]
[1748541985914,1.2123,2665.2,2665.0,10.0]
[1748541986224,7.68365941,2665.5,2665.1,10.0]
[1748541986225,3.75185237,2665.4,2665.1,10.0]
[1748541986535,1.2123,2665.5,2665.1,15.32993659]
[1748541986735,1.2123,2665.5,2665.1,3.75213659]
[1748541987122,1.2123,2665.5,2664.9,14.094376]
[1748541987329,3.75195301,2665.3,2664.9,14.094376]
[1748541987537,3.75185031,2665.4,2665.0,14.242575]
[1748541987937,3.75185031,2665.4,2665.0,12.561741]
[1748541988138,1.2123,2665.5,2665.1,12.088122]
[1748541988343,1.89209405,2667.4,2664.8,5.81477223]
[1748541988344,11.54939072,2667.1,2667.0,3.00308012]
[1748541988527,14.48360328,2667.1,2667.0,3.00308012]
[1748541988727,23.48230328,2667.1,2667.0,3.00308012]
[1748541988956,1.1147,2665.6,2665.4,8.0]
[1748541989252,1.1147,2665.6,2665.0,1.86773544]
[1748541989253,3.75188808,2665.4,2664.9,9.1428]
[1748541989749,3.75194006,2665.3,2664.9,1.1428]
[1748541989951,7.68571404,2665.5,2664.9,4.89526716]
[1748541990137,3.75179309,2665.4,2665.1,8.0]
[1748541990338,3.934,2665.5,2665.1,8.0]
[1748541990339,7.68568145,2665.5,2665.1,8.0]
[1748541990657,7.68570874,2665.5,2665.1,8.0]
[1748541990837,4.86620677,2665.6,2665.1,3.75213368]
[1748541990838,4.86627647,2665.6,2665.1,3.75213368]
[1748541991049,8.79820155,2665.6,2665.2,8.0]
[1748541991226,5.0467,2665.6,2664.9,4.895228]
[1748541991416,3.75181104,2665.4,2665.0,8.0]
[1748541991619,3.75176507,2665.5,2665.0,3.75232684]
[1748541992043,3.75176507,2665.5,2665.1,8.0]
[1748541993319,8.79820202,2665.6,2665.1,8.0]
[1748541993516,3.75176843,2665.5,2665.1,8.0]
[1748541993742,8.79820202,2665.6,2665.1,3.75220229]
[1748541993743,8.79420202,2665.6,2665.1,3.75220229]
[1748541994419,5.0427,2665.6,2665.1,3.75220229]
[1748541994625,3.75122954,2665.8,2665.3,11.75186888]
[1748541994845,5.0427,2665.9,2665.4,3.75167345]
[1748541995161,7.67908019,2665.9,2665.5,8.0]
[1748541995321,3.75123586,2665.8,2665.4,1.1428]
[1748541995657,3.75098314,2666.0,2665.4,9.1428]
[1748541995859,1.1147,2666.1,2665.4,1.1428]
[1748541995860,3.75133612,2665.8,2665.4,1.1428]
[1748541996960,3.75139301,2665.7,2665.6,8.0]
[1748541997126,3.75139301,2665.7,2665.4,1.1428]
[1748541997654,3.75127492,2665.8,2665.4,1.1428]
[1748541997977,7.67809809,2665.9,2665.4,1.1428]
[1748541997978,3.75149158,2665.7,2665.4,1.1428]
[1748541998686,3.75136357,2665.7,2665.4,1.1428]
[1748541999155,3.75132895,2665.8,2665.4,1.1428]
[1748541999315,3.75132895,2665.8,2665.4,9.1428]
[1748541999521,3.75119497,2665.9,2665.4,1.1428]
[1748541999860,7.67319497,2665.9,2665.4,16.808569]
[1748542000165,1.0932,2667.0,2665.6,1.88277223]
[1748542000463,0.35873553,2666.9,2666.1,1.88277223]
[1748542000672,3.74970556,2666.9,2666.4,25.205611]
[1748542000959,4.84279709,2667.0,2666.5,3.75021456]
[1748542001116,4.84279709,2667.0,2666.4,15.224311]
[1748542001117,3.74967242,2666.9,2666.4,15.224311]
[1748542001317,3.74967242,2666.9,2666.4,18.9746043]